[Event "Deutscher Jugend Online Cup 2020"]
[Site "Tornelo"]
[Date "2020.11.14"]
[Round "9.7"]
[White "Wartenberg, Alissa"]
[Black "Trunz, Michelle"]
[Result "1/2-1/2"]
[ECO "B90"]
[WhiteElo "1463"]
[BlackElo "1673"]
[Annotator "NA"]
[PlyCount "151"]
[EventDate "2020.11.13"]
[EventType "k.o."]
[SourceTitle "playchess.com"]
[Source "ChessBase"]
[SourceQuality "1"]
[TimeControl "600+3"]

1. e4 {[%emt 0:00:00]} c5 {[%emt 0:00:02]} 2. Nf3 {[%emt 0:00:03]} d6 {[%emt 0:00:02]} 3. d4 {[%emt 0:00:03]} cxd4 {[%emt 0:00:01]} 4. Nxd4 {[%emt 0:00:01]} Nf6 {[%emt 0:00:02]} 5. Nc3 {[%emt 0:00:05]} a6 {[%emt 0:00:01]} 6. Be3 {[%emt 0:00:07]} e5 {[%emt 0:00:03]} 7. Nb3 {[%emt 0:00:03]} Be6 {[%emt 0:00:02]} 8. f3 {[%emt 0:00:04]} Nbd7 {[%emt 0:00:08]} 9. Qd2 {[%emt 0:00:05]} Be7 {[%emt 0:00:06]} 10. Be2 {[%emt 0:00:03]} b5 {[%emt 0:00:15]} 11. f4 {[%emt 0:00:35]} exf4 {[%emt 0:00:10]} 12. Bxf4 {[%emt 0:00:03]} Nc5 {[%emt 0:00:44]} 13. Nxc5 {[%emt 0:00:08]} dxc5 {[%emt 0:00:06]} 14. Qe3 {[%emt 0:00:34]} Qa5 {[%emt 0:00:31]} 15. Qf3 {[%emt 0:01:38]} O-O {[%emt 0:00:43]} 16. Bd2 {[%emt 0:00:12]} b4 {[%emt 0:00:06]} 17. Nd5 {[%emt 0:00:45]} Bxd5 {[%emt 0:00:12]} 18. exd5 {[%emt 0:00:12]} Rad8 {[%emt 0:00:06]} 19. Bc4 {[%emt 0:00:50]} Rfe8 {[%emt 0:00:15]} 20. O-O {[%emt 0:00:08]} Bd6 {[%emt 0:00:39]} 21. Bg5 {[%emt 0:00:41]} Be5 {[%emt 0:00:08]} 22. Bxf6 {[%emt 0:00:28]} Bxf6 {[%emt 0:00:05]} 23. Rab1 {[%emt 0:00:12]} Qc7 {[%emt 0:00:19]} 24. Qg4 {[%emt 0:00:16]} Kh8 {[%emt 0:00:17]} 25. b3 {[%emt 0:00:18]} a5 {[%emt 0:00:23]} 26. Rbd1 {[%emt 0:00:12]} Qd6 {[%emt 0:00:27]} 27. Kh1 {[%emt 0:00:09]} Re7 {[%emt 0:00:20]} 28. Rde1 {[%emt 0:00:14]} Qd7 {[%emt 0:00:48]} 29. Qg3 {[%emt 0:00:29]} Rde8 {[%emt 0:00:36]} 30. Rxe7 {[%emt 0:00:10]} Rxe7 {[%emt 0:00:31]} 31. Qb8+ {[%emt 0:00:17]} Qe8 {[%emt 0:00:16]} 32. Qg3 {[%emt 0:00:29]} Be5 {[%emt 0:00:31]} 33. Qh4 {[%emt 0:00:12]} g6 {[%emt 0:01:00]} 34. Qf2 {[%emt 0:00:31]} Bd4 {[%emt 0:00:32]} 35. Qh4 {[%emt 0:00:19]} f5 {[%emt 0:00:24]} 36. d6 {[%emt 0:00:35]} Re4 {[%emt 0:00:10]} 37. Qg3 {[%emt 0:00:05]} Be5 {[%emt 0:00:08]} 38. Qd3 {[%emt 0:00:13]} Rd4 {[%emt 0:00:17]} 39. Qe2 {[%emt 0:00:05]} Re4 {[%emt 0:00:05]} 40. Qd3 {[%emt 0:00:05]} Qd7 {[%emt 0:00:07]} 41. Rd1 {[%emt 0:00:14]} Rd4 {[%emt 0:00:03]} 42. Qe2 {[%emt 0:00:01]} Rxd1+ {[%emt 0:00:02]} 43. Qxd1 {[%emt 0:00:01]} Qxd6 {[%emt 0:00:02]} 44. Qxd6 {[%emt 0:00:02]} Bxd6 {[%emt 0:00:01]} 45. g3 {[%emt 0:00:02]} Kg7 {[%emt 0:00:02]} 46. Kg2 {[%emt 0:00:01]} Kf6 {[%emt 0:00:05]} 47. Kf3 {[%emt 0:00:01]} Ke5 {[%emt 0:00:05]} 48. Bg8 {[%emt 0:00:03]} h6 {[%emt 0:00:01]} 49. Bh7 {[%emt 0:00:02]} g5 {[%emt 0:00:02]} 50. Bg8 {[%emt 0:00:02]} Kd4 {[%emt 0:00:02]} 51. Bc4 {[%emt 0:00:03]} f4 {[%emt 0:00:04]} 52. gxf4 {[%emt 0:00:04]} Bxf4 {[%emt 0:00:03]} 53. h3 {[%emt 0:00:03]} Kc3 {[%emt 0:00:03]} 54. Bd3 {[%emt 0:00:03]} Kb2 {[%emt 0:00:02]} 55. Ke4 {[%emt 0:00:02]} Kxa2 {[%emt 0:00:02]} 56. Kd5 {[%emt 0:00:02]} Be3 {[%emt 0:00:04]} 57. Kc4 {[%emt 0:00:05]} h5 {[%emt 0:00:18]} 58. Bf5 {[%emt 0:00:11]} Kb2 {[%emt 0:00:03]} 59. Kb5 {[%emt 0:00:03]} g4 {[%emt 0:00:01]} 60. hxg4 {[%emt 0:00:03]} hxg4 {[%emt 0:00:01]} 61. Bxg4 {[%emt 0:00:02]} Kxc2 {[%emt 0:00:02]} 62. Be6 {[%emt 0:00:01]} Kc3 {[%emt 0:00:01]} 63. Kxa5 {[%emt 0:00:03]} Bd4 {[%emt 0:00:03]} 64. Kb5 {[%emt 0:00:03]} Kd3 {[%emt 0:00:01]} 65. Ka5 {[%emt 0:00:08]} Kc3 {[%emt 0:00:02]} 66. Kb5 {[%emt 0:00:01]} Be3 {[%emt 0:00:02]} 67. Ka5 {[%emt 0:00:03]} Kd4 {[%emt 0:00:02]} 68. Kb5 {[%emt 0:00:01]} Ke5 {[%emt 0:00:01]} 69. Bc4 {[%emt 0:00:02]} Kd4 {[%emt 0:00:02]} 70. Kc6 {[%emt 0:00:02]} Kc3 {[%emt 0:00:02]} 71. Kd6 {[%emt 0:00:03]} Bd4 {[%emt 0:00:02]} 72. Ke6 {[%emt 0:00:02]} Bg1 {[%emt 0:00:01]} 73. Kf7 {[%emt 0:00:02]} Bd4 {[%emt 0:00:02]} 74. Ke6 {[%emt 0:00:01]} Kd2 {[%emt 0:00:01]} 75. Kf7 {[%emt 0:00:02]} Kc3 {[%emt 0:00:01]} 76. Ke6 {[%emt 0:00:02]} 1/2-1/2

[Event "Deutscher Jugend Online Cup 2020"]
[Site "Tornelo"]
[Date "2020.11.14"]
[Round "10.6"]
[White "Trunz, Michelle"]
[Black "Wartenberg, Alissa"]
[Result "1-0"]
[ECO "D13"]
[WhiteElo "1673"]
[BlackElo "1463"]
[Annotator "NA RC"]
[PlyCount "149"]
[EventDate "2020.11.13"]
[EventType "k.o."]
[SourceTitle "playchess.com"]
[Source "ChessBase"]
[SourceQuality "1"]
[TimeControl "600+3"]

1. d4 {[%emt 0:00:00]} d5 {[%emt 0:00:04]} 2. c4 {[%emt 0:00:02]} c6 {[%emt 0:00:02]} 3. cxd5 {[%emt 0:00:03]} cxd5 {[%emt 0:00:02]} 4. Nc3 {[%emt 0:00:01]} Nf6 {[%emt 0:00:03]} 5. Nf3 {[%emt 0:00:02]} e6 {[%emt 0:00:04]} 6. Bf4 {[%emt 0:00:09]} Nc6 {[%emt 0:00:06]} 7. e3 {[%emt 0:00:02]} Bb4 {[%emt 0:00:20]} 8. Bb5 {[%emt 0:00:26]} Qb6 {[%emt 0:00:41]} 9. Qa4 {[%emt 0:00:20]} Bxc3+ {[%emt 0:00:35]} 10. bxc3 {[%emt 0:00:05]} O-O {[%emt 0:00:30]} 11. Bxc6 {[%emt 0:00:05]} Qxc6 {[%emt 0:00:18]} 12. Qxc6 {[%emt 0:00:08]} bxc6 {[%emt 0:00:02]} 13. Ne5 {[%emt 0:00:24]} Bd7 {[%emt 0:00:25]} 14. Ke2 {[%emt 0:00:27]} a5 {[%emt 0:00:53]} 15. Rab1 {[%emt 0:00:10]} Rac8 {[%emt 0:00:15]} 16. Rb7 {[%emt 0:00:14]} Rfd8 {[%emt 0:00:29]} 17. Bg5 {[%emt 0:00:22]} Be8 {[%emt 0:00:26]} 18. f3 {[%emt 0:00:13]} h6 {[%emt 0:00:23]} 19. Bxf6 {[%emt 0:00:04]} gxf6 {[%emt 0:00:03]} 20. Ng4 {[%emt 0:00:02]} Kg7 {[%emt 0:00:03]} 21. Rhb1 {[%emt 0:00:20]} c5 {[%emt 0:00:21]} 22. Kd3 {[%emt 0:00:23]} cxd4 {[%emt 0:00:10]} 23. cxd4 {[%emt 0:00:27]} Rc4 {[%emt 0:00:22]} 24. Rb8 {[%emt 0:00:28]} Rxb8 {[%emt 0:00:08]} 25. Rxb8 {[%emt 0:00:02]} Ba4 {[%emt 0:00:09]} 26. Rb2 {[%emt 0:00:02]} Rc1 {[%emt 0:00:27]} 27. Ke2 {[%emt 0:00:35]} Rc2+ {[%emt 0:00:17]} 28. Rxc2 {[%emt 0:00:04]} Bxc2 {[%emt 0:00:02]} 29. Kd2 {[%emt 0:00:02]} Ba4 {[%emt 0:00:12]} 30. Kc3 {[%emt 0:00:05]} Bb5 {[%emt 0:00:05]} 31. Nf2 {[%emt 0:00:09]} Bc4 {[%emt 0:00:10]} 32. a3 {[%emt 0:00:03]} e5 {[%emt 0:00:15]} 33. Nd1 {[%emt 0:00:15]} Bf1 {[%emt 0:00:21]} 34. g3 {[%emt 0:00:07]} Be2 {[%emt 0:00:03]} 35. Nb2 {[%emt 0:00:12]} Bxf3 {[%emt 0:00:09]} 36. Nd3 {[%emt 0:00:09]} e4 {[%emt 0:00:23]} 37. Nf4 {[%emt 0:00:08]} Bg4 {[%emt 0:00:08]} 38. Nxd5 {[%emt 0:00:03]} Bd7 {[%emt 0:00:06]} 39. Nf4 {[%emt 0:00:11]} f5 {[%emt 0:00:09]} 40. Kc4 {[%emt 0:00:05]} Kf6 {[%emt 0:00:07]} 41. h4 {[%emt 0:00:15]} Ke7 {[%emt 0:00:17]} 42. Kc5 {[%emt 0:00:07]} Kd8 {[%emt 0:00:14]} 43. Kd6 {[%emt 0:00:04]} Ke8 {[%emt 0:00:27]} 44. Nd5 {[%emt 0:00:08]} Ba4 {[%emt 0:00:21]} 45. Ne7 {[%emt 0:00:25]} Bd7 {[%emt 0:00:21]} 46. Ng8 {[%emt 0:00:04]} Be6 {[%emt 0:00:24]} 47. Nf6+ {[%emt 0:00:09]} Kf8 {[%emt 0:00:08]} 48. d5 {[%emt 0:00:05]} Bc8 {[%emt 0:00:03]} 49. Nd7+ {[%emt 0:00:07]} Ke8 {[%emt 0:00:07]} 50. Nc5 {[%emt 0:00:07]} Kd8 {[%emt 0:00:08]} 51. Nb3 {[%emt 0:00:06]} a4 {[%emt 0:00:03]} 52. Nc5 {[%emt 0:00:02]} Ke8 {[%emt 0:00:06]} 53. Nxa4 {[%emt 0:00:02]} Bd7 {[%emt 0:00:02]} 54. Nc5 {[%emt 0:00:02]} Bb5 {[%emt 0:00:01]} 55. a4 {[%emt 0:00:02]} Be2 {[%emt 0:00:04]} 56. a5 {[%emt 0:00:02]} Kd8 {[%emt 0:00:03]} 57. Kc6 {[%emt 0:00:06]} Kc8 {[%emt 0:00:03]} 58. d6 {[%emt 0:00:01]} Bc4 {[%emt 0:00:03]} 59. a6 {[%emt 0:00:07]} Bxa6 {[%emt 0:00:03]} 60. Nxa6 {[%emt 0:00:03]} Kd8 {[%emt 0:00:02]} 61. Nc5 {[%emt 0:00:02]} Kc8 {[%emt 0:00:03]} 62. d7+ {[%emt 0:00:02]} Kd8 {[%emt 0:00:03]} 63. Nb3 {[%emt 0:00:02]} f6 {[%emt 0:00:04]} 64. Nd4 {[%emt 0:00:04]} Ke7 {[%emt 0:00:03]} 65. Kc7 {[%emt 0:00:03]} Kf7 {[%emt 0:00:03]} 66. d8=Q {[%emt 0:00:05]} Kg6 {[%emt 0:00:02]} 67. Qe8+ {[%emt 0:00:03]} Kh7 {[%emt 0:00:03]} 68. Qf7+ {[%emt 0:00:02]} Kh8 {[%emt 0:00:02]} 69. Qxf6+ {[%emt 0:00:02]} Kg8 {[%emt 0:00:03]} 70. Qg6+ {[%emt 0:00:03]} Kh8 {[%emt 0:00:03]} 71. Qxh6+ {[%emt 0:00:02]} Kg8 {[%emt 0:00:01]} 72. Ne6 {[%emt 0:00:07]} Kf7 {[%emt 0:00:05]} 73. Kd6 {[%emt 0:00:03]} f4 {[%emt 0:00:04]} 74. Qg7+ {[%emt 0:00:02]} Ke8 {[%emt 0:00:02]} 75. Qf8# {[%emt 0:00:02]} 1-0

[Event "Deutscher Jugend Online Cup 2020"]
[Site "Tornelo"]
[Date "2020.11.14"]
[Round "10.7"]
[White "Bildat, Emilia"]
[Black "Becker, Linda"]
[Result "0-1"]
[ECO "A25"]
[WhiteElo "1852"]
[BlackElo "1763"]
[Annotator "NA"]
[PlyCount "50"]
[EventDate "2020.11.13"]
[EventType "k.o."]
[SourceTitle "playchess.com"]
[Source "ChessBase"]
[SourceQuality "1"]
[TimeControl "600+3"]

{[%evp 22,50,92,54,32767,36,64,67,71,57,68,60,69,59,40,-9,13,-5,-16,0,-16,-81,-81,-367,-387,-831,-927,-3225,-1094,-29996,-2723]} 1. c4 {[%emt 0:00:00]} e5 {[%emt 0:00:05]} 2. g3 {[%emt 0:00:02]} Nc6 {[%emt 0:00:03]} 3. Bg2 {[%emt 0:00:02]} f5 {[%emt 0:00:02]} 4. Nc3 {[%emt 0:00:02]} Nf6 {[%emt 0:00:05]} 5. d3 {[%emt 0:00:13]} Bb4 {[%emt 0:00:04]} 6. Bd2 {[%emt 0:00:02]} Bxc3 {[%emt 0:00:04]} 7. Bxc3 {[%emt 0:00:02]} d6 {[%emt 0:00:06]} 8. e3 {[%emt 0:00:04]} O-O {[%emt 0:00:02]} 9. Ne2 {[%emt 0:00:02]} Qe8 {[%emt 0:00:02]} 10. O-O {[%emt 0:00:09]} Kh8 {[%emt 0:00:02]} 11. b4 {[%emt 0:00:06]} Rb8 {[%emt 0:00:11]} 12. a4 {[%emt 0:00:07]} Bd7 {[%emt 0:00:02]} 13. a5 {[%emt 0:00:23]} Qh5 {[%emt 0:00:10]} 14. b5 {[%emt 0:00:30]} Nd8 {[%emt 0:00:07]} 15. d4 {[%emt 0:00:46]} Nf7 {[%emt 0:00:30]} 16. Bb4 {[%emt 0:00:54]} Rfe8 {[%emt 0:00:20]} 17. Nc3 {[%emt 0:00:32]} Qh6 {[%emt 0:00:24]} 18. c5 {[%emt 0:00:11]} (18. Nd5 $14) 18... dxc5 {[%emt 0:00:43]} 19. dxc5 {[%emt 0:00:12]} Ng4 {[%emt 0:00:14]} 20. h3 {[%emt 0:00:10]} Nf6 {[%emt 0:00:08]} 21. Qe2 {[%emt 0:00:23]} (21. f4 $11 {remains equal.}) 21... f4 {[%emt 0:00:08]} 22. Rfd1 $2 {[%emt 0:00:28]} (22. h4 $1 $15) 22... Bxh3 {[%emt 0:00:12]} 23. Rd2 {[%emt 0:00:42]} (23. Bxh3 $142 Qxh3 24. Qf1) 23... Ng5 {[%emt 0:00:28]} 24. Qf1 {[%emt 0:00:47] [#]} Nf3+ $19 {[%emt 0:00:37]} 25. Kh1 {[%emt 0:00:14]} Nxd2 {[%emt 0:00:08]} (25... Bg4+ $142 26. Bh3 Bxh3 27. Qg2 Bg4+ 28. Qh3 Qxh3#) 0-1

[Event "Deutscher Jugend Online Cup 2020"]
[Site "Tornelo"]
[Date "2020.11.14"]
[Round "10.7"]
[White "Besou, Hussain"]
[Black "Buchinger, Alexis"]
[Result "1-0"]
[ECO "C01"]
[WhiteElo "1804"]
[BlackElo "1496"]
[Annotator "NA RC"]
[PlyCount "123"]
[EventDate "2020.11.13"]
[EventType "k.o."]
[SourceTitle "playchess.com"]
[Source "ChessBase"]
[SourceQuality "1"]
[TimeControl "600+3"]

1. e4 {[%emt 0:00:00]} e6 {[%emt 0:00:04]} 2. d4 {[%emt 0:00:04]} d6 {[%emt 0:00:02]} 3. c4 {[%emt 0:00:02]} Ne7 {[%emt 0:00:03]} 4. Nc3 {[%emt 0:00:02]} Nd7 {[%emt 0:00:02]} 5. f3 {[%emt 0:00:05]} b6 {[%emt 0:00:02]} 6. Be3 {[%emt 0:00:06]} Bb7 {[%emt 0:00:03]} 7. Qd2 {[%emt 0:00:04]} Rc8 {[%emt 0:00:10]} 8. Nge2 {[%emt 0:00:05]} g6 {[%emt 0:00:03]} 9. Ng3 {[%emt 0:00:06]} Bg7 {[%emt 0:00:03]} 10. Be2 {[%emt 0:00:03]} c5 {[%emt 0:00:08]} ({Black should play} 10... a6) 11. d5 {[%emt 0:00:05]} (11. Nb5 $18 {has better winning chances.}) 11... exd5 {[%emt 0:00:10]} 12. cxd5 {[%emt 0:00:03]} O-O {[%emt 0:00:14]} 13. O-O {[%emt 0:00:04]} f5 {[%emt 0:00:06]} 14. Bf4 {[%emt 0:00:23]} Be5 {[%emt 0:00:10]} 15. Bxe5 {[%emt 0:00:04]} Nxe5 {[%emt 0:00:12]} 16. Rae1 {[%emt 0:00:23]} f4 {[%emt 0:00:09]} 17. Nh1 {[%emt 0:00:03]} g5 {[%emt 0:00:09]} 18. g3 {[%emt 0:00:05]} Kh8 {[%emt 0:00:11]} 19. g4 {[%emt 0:00:06]} N7g6 {[%emt 0:00:02]} 20. Nf2 {[%emt 0:00:13]} Nh4 {[%emt 0:00:04]} 21. Nd3 {[%emt 0:00:03]} Qf6 {[%emt 0:00:12]} 22. Nxe5 {[%emt 0:00:04]} Qxe5 {[%emt 0:00:04]} 23. Rd1 {[%emt 0:00:03]} a6 {[%emt 0:00:04]} 24. a4 {[%emt 0:00:03]} Rf6 {[%emt 0:00:21]} 25. Bc4 {[%emt 0:00:11]} (25. Nb1 $11 {keeps the balance.}) 25... h5 {[%emt 0:00:12]} 26. h3 {[%emt 0:00:05]} ({Don't play} 26. gxh5 Rh6 $11) 26... hxg4 {[%emt 0:00:07]} 27. hxg4 {[%emt 0:00:03]} Rh6 {[%emt 0:00:02]} 28. Kf2 {[%emt 0:00:07]} Kg7 {[%emt 0:00:19]} 29. Ne2 $2 {[%emt 0:00:06]} (29. Qe2 $17) 29... Kg6 $2 {[%emt 0:00:25]} (29... Rch8 $19 30. Rg1 {[#]} Nxf3 $1 {[%mdl 512]} 31. Kxf3 Rh3+ 32. Kf2 Rh2+ 33. Ke1 f3) 30. Qc3 {[%emt 0:00:04]} Qe7 {[%emt 0:00:14]} 31. Bd3 $2 {[%emt 0:00:21]} (31. e5 $11) 31... Kf7 {[%emt 0:00:26]} 32. Rc1 {[%emt 0:00:20]} (32. Rh1 $17) 32... Rch8 {[%emt 0:00:10]} 33. b4 $2 {[%emt 0:00:23] [#]} (33. Rcd1) 33... Ng6 {[%emt 0:00:18]} (33... Nxf3 $142 $1 {[%mdl 512]} 34. Kxf3 Rh2 35. Qxh8 Rxh8) 34. bxc5 {[%emt 0:00:09]} bxc5 {[%emt 0:00:06]} 35. Rb1 {[%emt 0:00:05]} Ne5 {[%emt 0:00:11]} 36. Bc4 {[%emt 0:00:33]} Rh3 {[%emt 0:00:25]} 37. Ng1 {[%emt 0:00:04]} (37. Ke1 $142 Bc8 38. Ng1) 37... Rh2+ {[%emt 0:00:05]} 38. Ke1 {[%emt 0:00:08]} Rg2 {[%emt 0:00:09]} 39. Rb2 {[%emt 0:00:13]} Rxb2 {[%emt 0:00:06]} 40. Qxb2 {[%emt 0:00:02]} Nxc4 {[%emt 0:00:02]} 41. Qxh8 {[%emt 0:00:01]} Ne3 {[%emt 0:00:10]} 42. Qh7+ {[%emt 0:00:06]} Kf6 {[%emt 0:00:03]} 43. Qxe7+ {[%emt 0:00:03]} Kxe7 {[%emt 0:00:02]} 44. Rf2 {[%emt 0:00:04]} Kd7 {[%emt 0:00:04]} 45. Kd2 {[%emt 0:00:08]} a5 {[%emt 0:00:13]} 46. Nh3 {[%emt 0:00:04]} Ba6 {[%emt 0:00:22]} 47. Nxg5 {[%emt 0:00:06]} c4 {[%emt 0:00:18]} 48. Ne6 $18 {[%emt 0:00:28]} c3+ {[%emt 0:00:03]} 49. Kc1 {[%emt 0:00:02]} Bc4 {[%emt 0:00:33]} 50. Nxf4 {[%emt 0:00:05]} Bb3 {[%emt 0:00:05]} 51. Ne2 {[%emt 0:00:04]} Nd1 {[%emt 0:00:23]} 52. Rf1 {[%emt 0:00:06]} c2 {[%emt 0:00:36]} 53. Nd4 {[%emt 0:00:20]} Bxa4 {[%emt 0:00:02]} 54. Re1 {[%emt 0:00:05]} Nc3 {[%emt 0:00:28]} 55. Nxc2 {[%emt 0:00:07]} Nb5 {[%emt 0:00:08]} 56. g5 {[%emt 0:00:05]} Ke7 {[%emt 0:00:08]} 57. f4 {[%emt 0:00:02]} Bxc2 {[%emt 0:00:09]} 58. Kxc2 {[%emt 0:00:05]} Nd4+ {[%emt 0:00:01]} 59. Kd3 {[%emt 0:00:01]} Nf3 {[%emt 0:00:13]} 60. Rf1 {[%emt 0:00:05]} Nh2 {[%emt 0:00:01]} 61. Ra1 {[%emt 0:00:02]} Kd7 {[%emt 0:00:05]} 62. Rxa5 {[%emt 0:00:03]} 1-0

[Event "Deutscher Jugend Online Cup 2020"]
[Site "Tornelo"]
[Date "2020.11.14"]
[Round "10.7"]
[White "Trunz, Tamila"]
[Black "Sickmann, Lisa"]
[Result "0-1"]
[ECO "C67"]
[WhiteElo "1379"]
[BlackElo "1510"]
[Annotator "NA RC"]
[PlyCount "88"]
[EventDate "2020.11.13"]
[EventType "k.o."]
[SourceTitle "playchess.com"]
[Source "ChessBase"]
[SourceQuality "1"]
[TimeControl "600+3"]

1. e4 {[%emt 0:00:00]} e5 {[%emt 0:00:02]} 2. Nf3 {[%emt 0:00:03]} Nc6 {[%emt 0:00:02]} 3. Bb5 {[%emt 0:00:04]} Nf6 {[%emt 0:00:03]} 4. O-O {[%emt 0:00:03]} Nxe4 {[%emt 0:00:02]} 5. Re1 {[%emt 0:00:07]} Nd6 {[%emt 0:00:03]} 6. d4 {[%emt 0:00:11]} Nxb5 {[%emt 0:00:12]} 7. Nxe5 {[%emt 0:00:17]} Be7 {[%emt 0:00:16]} 8. Nxc6 {[%emt 0:00:11]} dxc6 {[%emt 0:00:05]} 9. Bg5 {[%emt 0:00:16]} f6 {[%emt 0:00:22]} 10. Bf4 {[%emt 0:00:51]} O-O {[%emt 0:00:13]} 11. c3 {[%emt 0:00:37]} Nd6 {[%emt 0:01:04]} 12. Qe2 {[%emt 0:00:49]} Re8 {[%emt 0:00:32]} 13. Bxd6 {[%emt 0:00:08]} cxd6 {[%emt 0:00:10]} 14. Nd2 {[%emt 0:00:15]} Bf5 {[%emt 0:00:05]} 15. Ne4 {[%emt 0:00:21]} Bxe4 {[%emt 0:00:09]} 16. Qxe4 {[%emt 0:00:04]} Bf8 {[%emt 0:00:08]} 17. Qf5 {[%emt 0:00:15]} Qc8 {[%emt 0:00:12]} 18. Qh5 {[%emt 0:00:47]} Qd7 {[%emt 0:00:13]} 19. d5 {[%emt 0:00:19]} Qf7 {[%emt 0:00:06]} 20. Qxf7+ {[%emt 0:00:42]} Kxf7 {[%emt 0:00:20]} 21. dxc6 {[%emt 0:00:17]} bxc6 {[%emt 0:00:04]} 22. Re3 {[%emt 0:00:04]} Rxe3 {[%emt 0:00:03]} 23. fxe3 {[%emt 0:00:03]} Re8 {[%emt 0:00:03]} 24. Kf2 {[%emt 0:00:04]} d5 {[%emt 0:00:02]} 25. a4 {[%emt 0:00:17]} Bc5 {[%emt 0:00:04]} 26. Re1 {[%emt 0:00:06]} f5 {[%emt 0:00:03]} 27. Kf3 {[%emt 0:00:17]} g5 {[%emt 0:00:06]} 28. b4 {[%emt 0:00:09]} Bd6 {[%emt 0:00:10]} 29. h3 {[%emt 0:00:13]} Re4 {[%emt 0:00:05]} 30. Rf1 {[%emt 0:00:15]} Kg6 {[%emt 0:00:35]} 31. g4 {[%emt 0:00:12]} f4 {[%emt 0:00:05]} 32. exf4 {[%emt 0:00:07]} Rxf4+ {[%emt 0:00:02]} 33. Ke2 {[%emt 0:00:09]} Rxf1 {[%emt 0:00:03]} 34. Kxf1 {[%emt 0:00:03]} Be5 {[%emt 0:00:02]} 35. Ke2 {[%emt 0:00:12]} Bxc3 {[%emt 0:00:03]} 36. b5 {[%emt 0:00:03]} cxb5 {[%emt 0:00:02]} 37. axb5 {[%emt 0:00:04]} Kf6 {[%emt 0:00:01]} 38. Kd3 {[%emt 0:00:03]} d4 {[%emt 0:00:02]} 39. Kc4 {[%emt 0:00:03]} Ke5 {[%emt 0:00:04]} 40. Kb3 {[%emt 0:00:19]} Ke4 {[%emt 0:00:04]} 41. Kc4 {[%emt 0:00:05]} Ke3 {[%emt 0:00:06]} 42. Kb3 {[%emt 0:00:03]} d3 {[%emt 0:00:03]} 43. Kxc3 {[%emt 0:00:03]} d2 {[%emt 0:00:02]} 44. Kc2 {[%emt 0:00:03]} Ke2 {[%emt 0:00:02]} 0-1

[Event "Deutscher Jugend Online Cup 2020"]
[Site "Tornelo"]
[Date "2020.11.14"]
[Round "13"]
[White "Bildat, Emilia"]
[Black "Becker, Linda"]
[Result "1/2-1/2"]
[ECO "A25"]
[WhiteElo "1852"]
[BlackElo "1763"]
[Annotator "NA RC"]
[PlyCount "93"]
[EventDate "2020.11.13"]
[EventType "k.o."]
[SourceTitle "playchess.com"]
[Source "ChessBase"]
[SourceQuality "1"]
[TimeControl "600+3"]

1. c4 e5 2. g3 Nc6 3. Bg2 f5 4. Nc3 Nf6 5. e3 Bb4 6. Nge2 O-O 7. O-O Bxc3 8. Nxc3 d6 9. d3 Qe8 10. a3 Kh8 11. Bd2 Rb8 12. b4 Nd8 13. Nb5 Ne6 14. Qc2 a6 15. Nc3 Qh5 16. Nd5 Ng4 17. h3 Nf6 18. a4 Ng5 19. h4 Nf3+ 20. Bxf3 Qxf3 21. Qd1 Qxd1 22. Rfxd1 Nxd5 23. cxd5 Bd7 24. Rdc1 Rfc8 25. e4 c6 26. dxc6 Rxc6 27. a5 Rbc8 28. f4 fxe4 29. dxe4 Rc2 30. Be3 R2c4 31. Rab1 Rxe4 32. Rxc8+ Bxc8 33. Rc1 Bd7 34. Rc7 Rxe3 35. Rxd7 h6 36. Kf2 exf4 37. gxf4 Re4 38. Rxb7 Rxf4+ 39. Kg3 Rf6 40. Ra7 d5 41. Rd7 Rf5 42. Kg4 Re5 43. Kg3 Re4 44. Rxd5 Rxb4 45. Rd6 Rb3+ 46. Kf4 Rb4+ 47. Ke3 1/2-1/2

[Event "Deutscher Jugend Online Cup 2020"]
[Site "Tornelo"]
[Date "2020.11.14"]
[Round "13"]
[White "Becker, Linda"]
[Black "Bildat, Emilia"]
[Result "1/2-1/2"]
[ECO "B22"]
[WhiteElo "1763"]
[BlackElo "1852"]
[Annotator "NA RC"]
[PlyCount "64"]
[EventDate "2020.11.13"]
[EventType "k.o."]
[SourceTitle "playchess.com"]
[Source "ChessBase"]
[SourceQuality "1"]
[TimeControl "600+3"]

1. e4 c5 2. c3 d5 3. exd5 Qxd5 4. d4 g6 5. Na3 cxd4 6. cxd4 Bg7 7. Nf3 Bg4 8. Be3 Bxf3 9. Qxf3 Qxf3 10. gxf3 Nf6 11. Bh3 Nd5 12. Rc1 Nc6 13. O-O O-O 14. Rfd1 e6 15. Nb5 Rfd8 16. Nc3 Rac8 17. Nxd5 Rxd5 18. Rc5 Rcd8 19. Rxd5 Rxd5 20. Bg2 Nxd4 21. Bxd4 Bxd4 22. Rd2 Bc5 23. Rxd5 exd5 24. f4 d4 25. Bxb7 Bd6 26. f5 gxf5 27. Kg2 Kg7 28. h3 Kg6 29. Bd5 f6 30. Kf3 Kg5 31. Be6 f4 32. Ke4 Be5 1/2-1/2

[Event "Deutscher Jugend Online Cup 2020"]
[Site "Tornelo"]
[Date "2020.11.14"]
[Round "13"]
[White "Trunz, Michelle"]
[Black "Wartenberg, Alissa"]
[Result "1-0"]
[ECO "D14"]
[WhiteElo "1673"]
[BlackElo "1463"]
[Annotator "NA RC"]
[PlyCount "145"]
[EventDate "2020.11.13"]
[EventType "k.o."]
[SourceTitle "playchess.com"]
[Source "ChessBase"]
[SourceQuality "1"]
[TimeControl "600+3"]

1. d4 d5 2. c4 c6 3. cxd5 cxd5 4. Nc3 Nf6 5. Nf3 Nc6 6. Bf4 Bf5 7. e3 e6 8. Qa4 a6 9. a3 Bd6 10. Bxd6 Qxd6 11. Ne5 O-O 12. Nxc6 Qxc6 13. Qxc6 bxc6 14. b4 Ra7 15. f3 Rfa8 16. a4 Rb8 17. Na2 a5 18. b5 cxb5 19. Bxb5 Ne8 20. Kd2 Nd6 21. Nc3 Rc7 22. Rhc1 Nc4+ 23. Ke2 Nb6 24. g4 Bg6 25. h4 f6 26. h5 Be8 27. Kd2 Nc4+ 28. Ke2 Nd6 29. Bxe8 Nxe8 30. Nb5 Rcb7 31. Rc2 Rb6 32. Rac1 Nd6 33. Nxd6 Rxd6 34. Rc8+ Rxc8 35. Rxc8+ Kf7 36. Rc7+ Kf8 37. Ra7 Rb6 38. Rxa5 Rb2+ 39. Kd3 Ra2 40. e4 dxe4+ 41. Kxe4 Ke8 42. Ra7 Kf8 43. Kd3 Kg8 44. Kc4 g6 45. h6 g5 46. Rg7+ Kf8 47. Ra7 Ke8 48. a5 e5 49. d5 Kd8 50. d6 Rd2 51. Kc5 Rc2+ 52. Kd5 Rd2+ 53. Ke6 Kc8 54. Kxf6 Rxd6+ 55. Kxg5 Rg6+ 56. Kh5 Re6 57. Rxh7 e4 58. fxe4 Rxe4 59. Ra7 Kb8 60. Rf7 Re8 61. g5 Kc8 62. h7 Rh8 63. g6 Kd8 64. Rg7 Ke8 65. Rg8+ Rxg8 66. hxg8=Q+ Kd7 67. Qf7+ Kc6 68. Qc4+ Kb7 69. g7 Ka7 70. Kg5 Kb7 71. Qb5+ Ka7 72. Qb6+ Ka8 73. g8=Q# 1-0

[Event "Deutscher Jugend Online Cup 2020"]
[Site "Tornelo"]
[Date "2020.11.14"]
[Round "13"]
[White "Sickmann, Lisa"]
[Black "Trunz, Tamila"]
[Result "1-0"]
[ECO "C77"]
[WhiteElo "1510"]
[BlackElo "1379"]
[Annotator "NA RC"]
[PlyCount "85"]
[EventDate "2020.11.13"]
[EventType "k.o."]
[SourceTitle "playchess.com"]
[Source "ChessBase"]
[SourceQuality "1"]
[TimeControl "600+3"]

1. e4 e5 2. Nf3 Nc6 3. Bb5 a6 4. Ba4 Nf6 5. d4 exd4 6. O-O Bc5 7. e5 Nd5 8. c3 Nb6 9. cxd4 Nxa4 10. Qxa4 b5 11. Qd1 Bb6 12. d5 Ne7 13. d6 cxd6 14. exd6 Nf5 15. Qd5 Rb8 16. Qxf5 O-O 17. Nc3 b4 18. Nd5 Bc5 19. Ng5 g6 20. Ne7+ Kg7 21. Qxc5 Rb5 22. Qd4+ f6 23. b3 Rb6 24. Nxh7 Kxh7 25. Qh4+ Kg7 26. Qh6+ Kf7 27. Qxg6+ Ke6 28. Bf4 Qxe7 29. dxe7 Kxe7 30. Rfe1+ Re6 31. Rxe6+ dxe6 32. Rd1 e5 33. Qg7+ Rf7 34. Qg8 Rf8 35. Qd5 exf4 36. Re1+ Be6 37. Qxe6+ Kd8 38. Qd6+ Kc8 39. Rc1+ Kb7 40. Qc6+ Ka7 41. Qc7+ Ka8 42. Rc6 Re8 43. Rxa6# 1-0